[Event "Titled Tuesday Blitz June 15 2021"]
[White "Tsaruk, Maksim"]
[Black "Eternauta2400"]
[WhiteFideId "13511173"]
[WhiteElo "2197"]
[BlackElo "2487"]
[Result "0-1"]
[Round "04"]
[TimeControl "180+1"]
[Date "2021.06.15"]
[WhiteClock "0:00:03"]
[BlackClock "0:00:50"]

1. Nf3 {[%clk 0:03:00]}  d5 {[%clk 0:02:58]} 2. c4 {[%clk 0:03:01]}  e6 {[%clk 0:02:57]} 3. d4 {[%clk 0:02:59]}  Nf6 {[%clk 0:02:57]} 4. g3 {[%clk 0:03:00]}  Bb4+ {[%clk 0:02:55]} 5. Nbd2 {[%clk 0:03:00]}  Bd6 {[%clk 0:02:56]} 6. Bg2 {[%clk 0:03:00]}  O-O {[%clk 0:02:56]} 7. O-O {[%clk 0:03:00]}  c6 {[%clk 0:02:56]} 8. b3 {[%clk 0:02:59]}  a5 {[%clk 0:02:55]} 9. Bb2 {[%clk 0:02:59]}  a4 {[%clk 0:02:55]} 10. bxa4 {[%clk 0:03:00]}  Qa5 {[%clk 0:02:54]} 11. Qb3 {[%clk 0:02:56]}  Qxa4 {[%clk 0:02:53]} 12. Ne1 {[%clk 0:02:52]}  Nbd7 {[%clk 0:02:46]} 13. Nd3 {[%clk 0:02:51]}  b5 {[%clk 0:02:44]} 14. cxb5 {[%clk 0:02:03]}  cxb5 {[%clk 0:02:45]} 15. e4 {[%clk 0:02:04]}  dxe4 {[%clk 0:02:41]} 16. Nxe4 {[%clk 0:02:05]}  Nxe4 {[%clk 0:02:41]} 17. Bxe4 {[%clk 0:02:06]}  Rb8 {[%clk 0:02:39]} 18. Bc6 {[%clk 0:01:32]}  Nf6 {[%clk 0:02:26]} 19. Qxa4 {[%clk 0:01:26]}  bxa4 {[%clk 0:02:25]} 20. Bxa4 {[%clk 0:01:27]}  Ba6 {[%clk 0:02:24]} 21. Bc2 {[%clk 0:00:38]}  Bxd3 {[%clk 0:02:20]} 22. Bxd3 {[%clk 0:00:39]}  Rxb2 {[%clk 0:02:20]} 23. a4 {[%clk 0:00:40]}  Ra8 {[%clk 0:02:15]} 24. a5 {[%clk 0:00:40]}  Ra7 {[%clk 0:02:14]} 25. a6 {[%clk 0:00:40]}  Nd5 {[%clk 0:02:11]} 26. Rfc1 {[%clk 0:00:39]}  Kf8 {[%clk 0:02:08]} 27. Rc8+ {[%clk 0:00:19]}  Ke7 {[%clk 0:02:08]} 28. Be4 {[%clk 0:00:10]}  f5 {[%clk 0:01:59]} 29. Bf3 {[%clk 0:00:06]}  Rb6 {[%clk 0:01:57]} 30. Be2 {[%clk 0:00:05]}  Nc7 {[%clk 0:01:42]} 31. Rg8 {[%clk 0:00:04]}  Kf7 {[%clk 0:01:40]} 32. Rd8 {[%clk 0:00:04]}  Nxa6 {[%clk 0:01:32]} 33. Bc4 {[%clk 0:00:04]}  Be7 {[%clk 0:01:27]} 34. Rc8 {[%clk 0:00:03]}  Rc7 {[%clk 0:01:12]} 35. Rxc7 {[%clk 0:00:02]}  Nxc7 {[%clk 0:01:11]} 36. Ra7 {[%clk 0:00:03]}  Nd5 {[%clk 0:01:10]} 37. Kg2 {[%clk 0:00:02]}  Rb4 {[%clk 0:01:09]} 38. Ba2 {[%clk 0:00:02]}  Rxd4 {[%clk 0:01:09]} 39. h4 {[%clk 0:00:03]}  h6 {[%clk 0:01:08]} 40. Kf3 {[%clk 0:00:03]}  g5 {[%clk 0:01:08]} 41. hxg5 {[%clk 0:00:04]}  hxg5 {[%clk 0:01:08]} 42. Rb7 {[%clk 0:00:04]}  Kf6 {[%clk 0:01:06]} 43. Kg2 {[%clk 0:00:04]}  Rd2 {[%clk 0:01:04]} 44. Bc4 {[%clk 0:00:04]}  Bc5 {[%clk 0:01:02]} 45. Kh1 {[%clk 0:00:01]}  Rxf2 {[%clk 0:00:59]} 46. Rb8 {[%clk 0:00:02]}  Rc2 {[%clk 0:00:55]} 47. Bd3 {[%clk 0:00:02]}  Rc3 {[%clk 0:00:55]} 48. Bb5 {[%clk 0:00:02]}  Rxg3 {[%clk 0:00:54]} 49. Bc6 {[%clk 0:00:03]}  Nf4 {[%clk 0:00:52]} 50. Kh2 {[%clk 0:00:03]}  Rh3# {[%clk 0:00:50]} 0-1


[Site "https://www.chess.com"]

[Event "Titled Tuesday Blitz June 15 2021"]
[White "Vaishali, Rameshbabu"]
[Black "Devaev, Alexander"]
[WhiteFideId "5091756"]
[BlackFideId "4169395"]
[WhiteElo "2313"]
[BlackElo "2185"]
[Result "1-0"]
[Round "04"]
[TimeControl "180+1"]
[Date "2021.06.15"]
[WhiteClock "0:00:06"]
[BlackClock "0:00:03"]

1. d4 {[%clk 0:03:00]}  Nf6 {[%clk 0:02:55]} 2. Bf4 {[%clk 0:02:59]}  e6 {[%clk 0:02:50]} 3. e3 {[%clk 0:02:58]}  c5 {[%clk 0:02:49]} 4. Nf3 {[%clk 0:02:56]}  b6 {[%clk 0:02:49]} 5. Nbd2 {[%clk 0:02:50]}  Bb7 {[%clk 0:02:50]} 6. Nc4 {[%clk 0:02:51]}  Ne4 {[%clk 0:01:54]} 7. Bd3 {[%clk 0:02:29]}  f5 {[%clk 0:01:33]} 8. Bxe4 {[%clk 0:02:24]}  Bxe4 {[%clk 0:01:23]} 9. Nd6+ {[%clk 0:02:12]}  Bxd6 {[%clk 0:01:15]} 10. Bxd6 {[%clk 0:02:13]}  cxd4 {[%clk 0:01:11]} 11. Qxd4 {[%clk 0:01:53]}  Rg8 {[%clk 0:01:10]} 12. Ne5 {[%clk 0:01:39]}  Nc6 {[%clk 0:01:02]} 13. Nxc6 {[%clk 0:01:29]}  Bxc6 {[%clk 0:00:54]} 14. O-O-O {[%clk 0:01:25]}  Qf6 {[%clk 0:00:41]} 15. Be5 {[%clk 0:01:12]}  Qe7 {[%clk 0:00:41]} 16. Bd6 {[%clk 0:01:13]}  Qf6 {[%clk 0:00:42]} 17. Qd3 {[%clk 0:01:13]}  Bxg2 {[%clk 0:00:26]} 18. Rhg1 {[%clk 0:01:11]}  Bf3 {[%clk 0:00:23]} 19. Rd2 {[%clk 0:01:04]}  Kf7 {[%clk 0:00:12]} 20. Qa3 {[%clk 0:00:45]}  a6 {[%clk 0:00:09]} 21. Be5 {[%clk 0:00:32]}  Qe7 {[%clk 0:00:08]} 22. Qa4 {[%clk 0:00:23]}  b5 {[%clk 0:00:08]} 23. Qf4 {[%clk 0:00:23]}  Bc6 {[%clk 0:00:08]} 24. f3 {[%clk 0:00:21]}  Rac8 {[%clk 0:00:07]} 25. Rdg2 {[%clk 0:00:20]}  g6 {[%clk 0:00:06]} 26. h4 {[%clk 0:00:18]}  Bd5 {[%clk 0:00:06]} 27. Qh6 {[%clk 0:00:16]}  Ke8 {[%clk 0:00:06]} 28. Qf4 {[%clk 0:00:14]}  Qc5 {[%clk 0:00:06]} 29. b3 {[%clk 0:00:09]}  Qa3+ {[%clk 0:00:05]} 30. Kb1 {[%clk 0:00:08]}  a5 {[%clk 0:00:05]} 31. Bd6 {[%clk 0:00:04]}  b4 {[%clk 0:00:04]} 32. Qg5 {[%clk 0:00:04]}  Rg7 {[%clk 0:00:02]} 33. Qf6 {[%clk 0:00:05]}  Rf7 {[%clk 0:00:02]} 34. Qh8+ {[%clk 0:00:05]}  Rf8 {[%clk 0:00:03]} 35. Qxf8# {[%clk 0:00:06]} 1-0


[Site "https://www.chess.com"]

[Event "Titled Tuesday Blitz June 15 2021"]
[White "Vokhidov, Shamsiddin"]
[Black "Potapova, Margarita"]
[WhiteFideId "14204223"]
[BlackFideId "14126869"]
[WhiteElo "2848"]
[BlackElo "2564"]
[Result "1-0"]
[Round "04"]
[TimeControl "180+1"]
[Date "2021.06.15"]
[WhiteClock "0:01:17"]
[BlackClock "0:00:08"]

1. e4 {[%clk 0:03:00]}  c5 {[%clk 0:02:59]} 2. Nc3 {[%clk 0:03:00]}  d6 {[%clk 0:03:00]} 3. Nf3 {[%clk 0:02:59]}  Nf6 {[%clk 0:03:00]} 4. d4 {[%clk 0:02:59]}  cxd4 {[%clk 0:03:00]} 5. Nxd4 {[%clk 0:02:59]}  a6 {[%clk 0:03:00]} 6. h3 {[%clk 0:02:59]}  e5 {[%clk 0:03:00]} 7. Nde2 {[%clk 0:03:00]}  b5 {[%clk 0:02:59]} 8. Ng3 {[%clk 0:02:59]}  Nbd7 {[%clk 0:02:56]} 9. Bg5 {[%clk 0:02:59]}  h6 {[%clk 0:02:49]} 10. Bxf6 {[%clk 0:02:58]}  Nxf6 {[%clk 0:02:50]} 11. Nh5 {[%clk 0:02:58]}  Be6 {[%clk 0:02:38]} 12. Nxf6+ {[%clk 0:02:56]}  Qxf6 {[%clk 0:02:38]} 13. a4 {[%clk 0:02:57]}  bxa4 {[%clk 0:01:57]} 14. Rxa4 {[%clk 0:02:56]}  Be7 {[%clk 0:01:52]} 15. Nd5 {[%clk 0:02:42]}  Bxd5 {[%clk 0:01:48]} 16. Qxd5 {[%clk 0:02:43]}  O-O {[%clk 0:01:45]} 17. Rxa6 {[%clk 0:02:40]}  Rab8 {[%clk 0:01:42]} 18. b3 {[%clk 0:02:36]}  Qf4 {[%clk 0:01:42]} 19. Ra1 {[%clk 0:02:29]}  Rfc8 {[%clk 0:01:40]} 20. Bc4 {[%clk 0:02:26]}  Rc5 {[%clk 0:01:35]} 21. Qd3 {[%clk 0:02:25]}  Kh8 {[%clk 0:01:11]} 22. O-O {[%clk 0:02:24]}  f5 {[%clk 0:01:11]} 23. Bd5 {[%clk 0:02:02]}  fxe4 {[%clk 0:01:05]} 24. Bxe4 {[%clk 0:02:02]}  Bf6 {[%clk 0:00:58]} 25. Qxd6 {[%clk 0:01:57]}  Rcc8 {[%clk 0:00:58]} 26. Ra4 {[%clk 0:01:53]}  Rd8 {[%clk 0:00:56]} 27. Qe6 {[%clk 0:01:51]}  Rd4 {[%clk 0:00:47]} 28. Rxd4 {[%clk 0:01:48]}  exd4 {[%clk 0:00:48]} 29. g3 {[%clk 0:01:48]}  Qe5 {[%clk 0:00:40]} 30. Qxe5 {[%clk 0:01:48]}  Bxe5 {[%clk 0:00:41]} 31. Bd3 {[%clk 0:01:46]}  Bd6 {[%clk 0:00:37]} 32. Re1 {[%clk 0:01:46]}  Bb4 {[%clk 0:00:37]} 33. Re4 {[%clk 0:01:44]}  Rd8 {[%clk 0:00:35]} 34. Re6 {[%clk 0:01:42]}  Kg8 {[%clk 0:00:35]} 35. Bg6 {[%clk 0:01:41]}  Kf8 {[%clk 0:00:34]} 36. Kf1 {[%clk 0:01:40]}  Be7 {[%clk 0:00:34]} 37. Ke2 {[%clk 0:01:40]}  Rd6 {[%clk 0:00:34]} 38. Rxd6 {[%clk 0:01:40]}  Bxd6 {[%clk 0:00:35]} 39. Kd3 {[%clk 0:01:40]}  Bc5 {[%clk 0:00:34]} 40. Kc4 {[%clk 0:01:41]}  Ba7 {[%clk 0:00:34]} 41. Kd5 {[%clk 0:01:38]}  Ke7 {[%clk 0:00:34]} 42. Kc6 {[%clk 0:01:37]}  Kd8 {[%clk 0:00:30]} 43. b4 {[%clk 0:01:37]}  Kc8 {[%clk 0:00:29]} 44. b5 {[%clk 0:01:35]}  d3 {[%clk 0:00:27]} 45. Bxd3 {[%clk 0:01:23]}  Bxf2 {[%clk 0:00:27]} 46. g4 {[%clk 0:01:21]}  Kb8 {[%clk 0:00:18]} 47. c4 {[%clk 0:01:22]}  Kc8 {[%clk 0:00:16]} 48. c5 {[%clk 0:01:23]}  Kb8 {[%clk 0:00:16]} 49. b6 {[%clk 0:01:23]}  Kc8 {[%clk 0:00:16]} 50. Kb5 {[%clk 0:01:21]}  Kb8 {[%clk 0:00:14]} 51. c6 {[%clk 0:01:20]}  Bg3 {[%clk 0:00:15]} 52. Bf5 {[%clk 0:01:19]}  Bf4 {[%clk 0:00:14]} 53. Kc4 {[%clk 0:01:19]}  Be5 {[%clk 0:00:13]} 54. Kd5 {[%clk 0:01:19]}  Bf4 {[%clk 0:00:08]} 55. Ke6 {[%clk 0:01:17]}  g5 {[%clk 0:00:08]} 56. Kd7 {[%clk 0:01:17]} 1-0


[Site "https://www.chess.com"]

[Event "Titled Tuesday Blitz June 15 2021"]
[White "Willychess95"]
[Black "Indjic, Aleksandar"]
[BlackFideId "911925"]
[WhiteElo "2570"]
[BlackElo "2897"]
[Result "0-1"]
[Round "04"]
[TimeControl "180+1"]
[Date "2021.06.15"]
[WhiteClock "0:00:44"]
[BlackClock "0:01:19"]

1. e4 {[%clk 0:03:00]}  e6 {[%clk 0:02:58]} 2. Nf3 {[%clk 0:03:00]}  d5 {[%clk 0:02:58]} 3. e5 {[%clk 0:03:00]}  c5 {[%clk 0:02:57]} 4. b4 {[%clk 0:03:01]}  d4 {[%clk 0:02:55]} 5. c3 {[%clk 0:02:58]}  Nc6 {[%clk 0:02:52]} 6. b5 {[%clk 0:02:55]}  Nce7 {[%clk 0:02:51]} 7. Bd3 {[%clk 0:02:53]}  Ng6 {[%clk 0:02:44]} 8. O-O {[%clk 0:02:52]}  Nf4 {[%clk 0:02:12]} 9. Be4 {[%clk 0:02:51]}  d3 {[%clk 0:02:12]} 10. c4 {[%clk 0:02:41]}  Ne2+ {[%clk 0:01:59]} 11. Kh1 {[%clk 0:02:38]}  f5 {[%clk 0:01:59]} 12. exf6 {[%clk 0:02:23]}  Nxf6 {[%clk 0:01:58]} 13. Ng5 {[%clk 0:01:49]}  Ng4 {[%clk 0:01:36]} 14. f3 {[%clk 0:01:24]}  Nxh2 {[%clk 0:01:21]} 15. f4 {[%clk 0:00:44]}  Nxf1 {[%clk 0:01:19]} 16. Qxf1 {[%clk 0:00:44]}  Ng3+ {[%clk 0:01:19]} 0-1


[Site "https://www.chess.com"]

[Event "Titled Tuesday Blitz June 15 2021"]
[White "Yanchenko, Roman"]
[Black "Howell, David W L"]
[WhiteFideId "4137329"]
[BlackFideId "410608"]
[WhiteElo "2514"]
[BlackElo "2643"]
[Result "1/2-1/2"]
[Round "04"]
[TimeControl "180+1"]
[Date "2021.06.15"]
[WhiteClock "0:00:36"]
[BlackClock "0:00:11"]

1. d4 {[%clk 0:03:00]}  d5 {[%clk 0:02:59]} 2. c4 {[%clk 0:03:01]}  dxc4 {[%clk 0:02:56]} 3. Nc3 {[%clk 0:03:01]}  a6 {[%clk 0:02:41]} 4. e3 {[%clk 0:02:55]}  b5 {[%clk 0:02:39]} 5. a4 {[%clk 0:02:54]}  b4 {[%clk 0:02:24]} 6. Qf3 {[%clk 0:02:38]}  Ra7 {[%clk 0:02:14]} 7. Bxc4 {[%clk 0:02:38]}  e6 {[%clk 0:02:14]} 8. Nd1 {[%clk 0:02:31]}  Bb7 {[%clk 0:02:12]} 9. Qh3 {[%clk 0:02:30]}  Nd7 {[%clk 0:02:09]} 10. Nf3 {[%clk 0:02:24]}  Ngf6 {[%clk 0:02:08]} 11. O-O {[%clk 0:02:18]}  Bd6 {[%clk 0:02:01]} 12. b3 {[%clk 0:02:06]}  O-O {[%clk 0:01:48]} 13. Nb2 {[%clk 0:02:05]}  a5 {[%clk 0:01:39]} 14. Bd3 {[%clk 0:02:03]}  Ne4 {[%clk 0:01:34]} 15. Nc4 {[%clk 0:01:58]}  f5 {[%clk 0:01:17]} 16. Bb2 {[%clk 0:01:41]}  Rf6 {[%clk 0:01:04]} 17. Nxd6 {[%clk 0:01:00]}  cxd6 {[%clk 0:01:05]} 18. Qh4 {[%clk 0:01:00]}  Qf8 {[%clk 0:00:29]} 19. Rfc1 {[%clk 0:00:50]}  Bd5 {[%clk 0:00:29]} 20. Bxe4 {[%clk 0:00:42]}  fxe4 {[%clk 0:00:27]} 21. Nd2 {[%clk 0:00:42]}  Rh6 {[%clk 0:00:23]} 22. Qf4 {[%clk 0:00:41]}  Rf6 {[%clk 0:00:22]} 23. Qh4 {[%clk 0:00:41]}  Rh6 {[%clk 0:00:22]} 24. Qf4 {[%clk 0:00:41]}  Rf6 {[%clk 0:00:11]} 25. Qh4 {[%clk 0:00:36]} 1/2-1/2


[Site "https://www.chess.com"]

[Event "Titled Tuesday Blitz June 15 2021"]
[White "deribas12345"]
[Black "Ozen, Bahadir"]
[BlackFideId "6337058"]
[WhiteElo "2529"]
[BlackElo "2503"]
[Result "0-1"]
[Round "04"]
[TimeControl "180+1"]
[Date "2021.06.15"]
[WhiteClock "0:00:08"]
[BlackClock "0:00:09"]

1. d4 {[%clk 0:02:57]}  d5 {[%clk 0:02:59]} 2. c4 {[%clk 0:02:55]}  c6 {[%clk 0:02:59]} 3. Nc3 {[%clk 0:02:54]}  Nf6 {[%clk 0:02:59]} 4. Nf3 {[%clk 0:02:53]}  e6 {[%clk 0:02:55]} 5. e3 {[%clk 0:02:52]}  Nbd7 {[%clk 0:02:54]} 6. Be2 {[%clk 0:02:51]}  Bd6 {[%clk 0:02:53]} 7. O-O {[%clk 0:02:50]}  O-O {[%clk 0:02:52]} 8. Qc2 {[%clk 0:02:48]}  dxc4 {[%clk 0:02:42]} 9. Bxc4 {[%clk 0:02:47]}  b5 {[%clk 0:02:42]} 10. Be2 {[%clk 0:02:47]}  Bb7 {[%clk 0:02:37]} 11. Rd1 {[%clk 0:02:46]}  Qb8 {[%clk 0:02:22]} 12. e4 {[%clk 0:02:17]}  e5 {[%clk 0:02:22]} 13. dxe5 {[%clk 0:02:13]}  Nxe5 {[%clk 0:02:23]} 14. Nxe5 {[%clk 0:02:09]}  Bxe5 {[%clk 0:02:22]} 15. g3 {[%clk 0:02:07]}  Re8 {[%clk 0:02:03]} 16. Be3 {[%clk 0:02:03]}  a6 {[%clk 0:01:31]} 17. a3 {[%clk 0:01:38]}  c5 {[%clk 0:01:24]} 18. Nd5 {[%clk 0:01:16]}  Nxd5 {[%clk 0:00:48]} 19. exd5 {[%clk 0:01:16]}  c4 {[%clk 0:00:48]} 20. Rab1 {[%clk 0:01:08]}  Qd6 {[%clk 0:00:44]} 21. Bf3 {[%clk 0:00:58]}  Rad8 {[%clk 0:00:43]} 22. a4 {[%clk 0:00:51]}  h6 {[%clk 0:00:35]} 23. axb5 {[%clk 0:00:50]}  axb5 {[%clk 0:00:35]} 24. Qf5 {[%clk 0:00:50]}  Qf6 {[%clk 0:00:33]} 25. Qxf6 {[%clk 0:00:42]}  Bxf6 {[%clk 0:00:34]} 26. Bb6 {[%clk 0:00:37]}  Rd7 {[%clk 0:00:33]} 27. Bg4 {[%clk 0:00:36]}  Rxd5 {[%clk 0:00:31]} 28. Rxd5 {[%clk 0:00:33]}  Bxd5 {[%clk 0:00:32]} 29. Rd1 {[%clk 0:00:33]}  Bc6 {[%clk 0:00:27]} 30. Ba5 {[%clk 0:00:19]}  Bxb2 {[%clk 0:00:26]} 31. Rd6 {[%clk 0:00:19]}  Ra8 {[%clk 0:00:14]} 32. Rxc6 {[%clk 0:00:16]}  Rxa5 {[%clk 0:00:14]} 33. h4 {[%clk 0:00:11]}  g6 {[%clk 0:00:14]} 34. h5 {[%clk 0:00:10]}  Kg7 {[%clk 0:00:11]} 35. hxg6 {[%clk 0:00:10]}  fxg6 {[%clk 0:00:12]} 36. Kg2 {[%clk 0:00:10]}  Bd4 {[%clk 0:00:10]} 37. f4 {[%clk 0:00:10]}  Ra2+ {[%clk 0:00:09]} 38. Kf3 {[%clk 0:00:10]}  Ra3+ {[%clk 0:00:06]} 39. Ke4 {[%clk 0:00:10]}  Bf6 {[%clk 0:00:07]} 40. Rc7+ {[%clk 0:00:10]}  Kf8 {[%clk 0:00:07]} 41. Kd5 {[%clk 0:00:10]}  Rxg3 {[%clk 0:00:06]} 42. Be6 {[%clk 0:00:07]}  Rd3+ {[%clk 0:00:06]} 43. Kc5 {[%clk 0:00:07]}  Be7+ {[%clk 0:00:02]} 44. Kxb5 {[%clk 0:00:07]}  c3 {[%clk 0:00:03]} 45. Rc8+ {[%clk 0:00:07]}  Kg7 {[%clk 0:00:03]} 46. Bc4 {[%clk 0:00:06]}  Rd4 {[%clk 0:00:02]} 47. Bb3 {[%clk 0:00:05]}  Rb4+ {[%clk 0:00:02]} 48. Ka5 {[%clk 0:00:06]}  Rxb3 {[%clk 0:00:03]} 49. Rc7 {[%clk 0:00:06]}  Kf6 {[%clk 0:00:03]} 50. Ka4 {[%clk 0:00:06]}  Rb6 {[%clk 0:00:03]} 51. Rxc3 {[%clk 0:00:05]}  Re6 {[%clk 0:00:03]} 52. Rc5 {[%clk 0:00:05]}  Bxc5 {[%clk 0:00:03]} 53. Kb5 {[%clk 0:00:05]}  Kf5 {[%clk 0:00:04]} 54. Kc4 {[%clk 0:00:05]}  g5 {[%clk 0:00:05]} 55. Kd5 {[%clk 0:00:05]}  gxf4 {[%clk 0:00:05]} 56. Kc4 {[%clk 0:00:06]}  h5 {[%clk 0:00:06]} 57. Kb5 {[%clk 0:00:07]}  h4 {[%clk 0:00:07]} 58. Kc4 {[%clk 0:00:07]}  h3 {[%clk 0:00:08]} 59. Kd5 {[%clk 0:00:08]}  h2 {[%clk 0:00:09]} 60. Kc4 {[%clk 0:00:08]}  f3 {[%clk 0:00:09]} 0-1


[Site "https://www.chess.com"]

[Event "Titled Tuesday Blitz June 15 2021"]
[White "Abdusattorov, Nodirbek"]
[Black "Maly, Alexey"]
[WhiteFideId "14204118"]
[BlackFideId "14103184"]
[WhiteElo "2662"]
[BlackElo "2285"]
[Result "1-0"]
[Round "05"]
[TimeControl "180+1"]
[Date "2021.06.15"]
[WhiteClock "0:00:06"]
[BlackClock "0:00:01"]

1. d4 {[%clk 0:03:00]}  d5 {[%clk 0:02:59]} 2. c4 {[%clk 0:03:00]}  dxc4 {[%clk 0:03:00]} 3. Nf3 {[%clk 0:03:00]}  Nf6 {[%clk 0:03:01]} 4. e3 {[%clk 0:03:00]}  e6 {[%clk 0:03:01]} 5. Bxc4 {[%clk 0:03:00]}  a6 {[%clk 0:03:01]} 6. O-O {[%clk 0:03:01]}  b5 {[%clk 0:03:02]} 7. Nbd2 {[%clk 0:03:01]}  bxc4 {[%clk 0:03:01]} 8. Nxc4 {[%clk 0:03:02]}  Be7 {[%clk 0:02:57]} 9. b3 {[%clk 0:03:00]}  O-O {[%clk 0:02:57]} 10. Ba3 {[%clk 0:03:00]}  Bxa3 {[%clk 0:02:55]} 11. Nxa3 {[%clk 0:03:01]}  Nbd7 {[%clk 0:02:47]} 12. Rc1 {[%clk 0:03:01]}  Bb7 {[%clk 0:02:45]} 13. Ne1 {[%clk 0:02:55]}  a5 {[%clk 0:02:24]} 14. Nd3 {[%clk 0:02:53]}  Ba6 {[%clk 0:02:24]} 15. Nc4 {[%clk 0:02:48]}  a4 {[%clk 0:02:11]} 16. bxa4 {[%clk 0:02:45]}  Bxc4 {[%clk 0:02:07]} 17. Rxc4 {[%clk 0:02:45]}  Nb6 {[%clk 0:02:08]} 18. Rc6 {[%clk 0:02:41]}  Nxa4 {[%clk 0:01:55]} 19. Qc2 {[%clk 0:02:42]}  Nb6 {[%clk 0:01:48]} 20. Rc1 {[%clk 0:02:38]}  Qd5 {[%clk 0:01:37]} 21. Nb4 {[%clk 0:02:38]}  Qb5 {[%clk 0:01:32]} 22. Nd3 {[%clk 0:02:27]}  Nbd5 {[%clk 0:01:26]} 23. h3 {[%clk 0:02:21]}  Nb4 {[%clk 0:01:18]} 24. Nxb4 {[%clk 0:02:21]}  Qxb4 {[%clk 0:01:19]} 25. Rxc7 {[%clk 0:02:21]}  Qa3 {[%clk 0:01:15]} 26. Ra1 {[%clk 0:02:20]}  Nd5 {[%clk 0:01:13]} 27. Rc4 {[%clk 0:02:16]}  h6 {[%clk 0:01:10]} 28. Qd2 {[%clk 0:01:51]}  Rfc8 {[%clk 0:01:04]} 29. Rxc8+ {[%clk 0:01:49]}  Rxc8 {[%clk 0:01:05]} 30. Rb1 {[%clk 0:01:49]}  Nc3 {[%clk 0:00:56]} 31. Rb2 {[%clk 0:01:14]}  Ne4 {[%clk 0:00:56]} 32. Qe2 {[%clk 0:01:15]}  Rc1+ {[%clk 0:00:55]} 33. Kh2 {[%clk 0:01:15]}  Qd6+ {[%clk 0:00:55]} 34. g3 {[%clk 0:01:07]}  Ng5 {[%clk 0:00:42]} 35. f3 {[%clk 0:00:50]}  Qd5 {[%clk 0:00:36]} 36. Kg2 {[%clk 0:00:41]}  Nxf3 {[%clk 0:00:19]} 37. e4 {[%clk 0:00:41]}  Qh5 {[%clk 0:00:18]} 38. a4 {[%clk 0:00:20]}  Rg1+ {[%clk 0:00:16]} 39. Kf2 {[%clk 0:00:20]}  Rh1 {[%clk 0:00:13]} 40. Ke3 {[%clk 0:00:17]}  Rh2 {[%clk 0:00:11]} 41. Rb8+ {[%clk 0:00:17]}  Kh7 {[%clk 0:00:11]} 42. Qxf3 {[%clk 0:00:17]}  Qa5 {[%clk 0:00:08]} 43. Qf1 {[%clk 0:00:05]}  Qd2+ {[%clk 0:00:06]} 44. Kf3 {[%clk 0:00:05]}  Qc3+ {[%clk 0:00:06]} 45. Kg4 {[%clk 0:00:04]}  Kg6 {[%clk 0:00:04]} 46. Rb5 {[%clk 0:00:02]}  Qe3 {[%clk 0:00:02]} 47. Qf3 {[%clk 0:00:02]}  Qd2 {[%clk 0:00:02]} 48. h4 {[%clk 0:00:02]}  h5+ {[%clk 0:00:03]} 49. Rxh5 {[%clk 0:00:02]}  Rg2 {[%clk 0:00:03]} 50. Rg5+ {[%clk 0:00:03]}  Kh7 {[%clk 0:00:03]} 51. Kh3 {[%clk 0:00:03]}  Kg8 {[%clk 0:00:03]} 52. Kg4 {[%clk 0:00:04]}  Qc2 {[%clk 0:00:02]} 53. Rc5 {[%clk 0:00:04]}  Rf2 {[%clk 0:00:03]} 54. Rxc2 {[%clk 0:00:04]}  Rxf3 {[%clk 0:00:02]} 55. Kxf3 {[%clk 0:00:05]}  f5 {[%clk 0:00:02]} 56. a5 {[%clk 0:00:05]}  fxe4+ {[%clk 0:00:01]} 57. Kxe4 {[%clk 0:00:06]} 1-0


[Site "https://www.chess.com"]

[Event "Titled Tuesday Blitz June 15 2021"]
[White "Aitbayev, Aslan"]
[Black "Titus, Andrew"]
[WhiteFideId "13704613"]
[BlackFideId "2059770"]
[WhiteElo "2417"]
[BlackElo "2044"]
[Result "1-0"]
[Round "05"]
[TimeControl "180+1"]
[Date "2021.06.15"]
[WhiteClock "0:00:06"]
[BlackClock "0:00:04"]

1. e4 {[%clk 0:03:00]}  c5 {[%clk 0:02:59]} 2. Nf3 {[%clk 0:03:00]}  d6 {[%clk 0:02:59]} 3. d4 {[%clk 0:03:00]}  cxd4 {[%clk 0:03:00]} 4. Nxd4 {[%clk 0:03:01]}  Nf6 {[%clk 0:03:00]} 5. Nc3 {[%clk 0:03:02]}  a6 {[%clk 0:03:00]} 6. Be3 {[%clk 0:03:02]}  e6 {[%clk 0:03:00]} 7. g4 {[%clk 0:03:01]}  h6 {[%clk 0:02:59]} 8. Bg2 {[%clk 0:02:58]}  Nbd7 {[%clk 0:02:54]} 9. f4 {[%clk 0:02:41]}  g5 {[%clk 0:02:38]} 10. fxg5 {[%clk 0:02:27]}  hxg5 {[%clk 0:02:38]} 11. Bxg5 {[%clk 0:02:27]}  Be7 {[%clk 0:02:34]} 12. Qe2 {[%clk 0:01:45]}  Ne5 {[%clk 0:02:27]} 13. O-O-O {[%clk 0:01:26]}  Nfxg4 {[%clk 0:02:22]} 14. Bxe7 {[%clk 0:01:08]}  Qxe7 {[%clk 0:02:23]} 15. Kb1 {[%clk 0:01:04]}  Bd7 {[%clk 0:02:09]} 16. h3 {[%clk 0:00:54]}  Nf6 {[%clk 0:02:08]} 17. Nf3 {[%clk 0:00:54]}  Bc6 {[%clk 0:02:01]} 18. Rhf1 {[%clk 0:00:53]}  O-O-O {[%clk 0:01:53]} 19. Qe3 {[%clk 0:00:32]}  Nfd7 {[%clk 0:01:44]} 20. Qa7 {[%clk 0:00:21]}  Nxf3 {[%clk 0:01:36]} 21. Rxf3 {[%clk 0:00:20]}  Kc7 {[%clk 0:01:35]} 22. Qf2 {[%clk 0:00:17]}  Ne5 {[%clk 0:01:34]} 23. Rg3 {[%clk 0:00:18]}  Rdg8 {[%clk 0:01:25]} 24. Rxg8 {[%clk 0:00:17]}  Rxg8 {[%clk 0:01:26]} 25. Bf1 {[%clk 0:00:17]}  Qg5 {[%clk 0:01:13]} 26. a4 {[%clk 0:00:16]}  Qg3 {[%clk 0:01:12]} 27. Qd4 {[%clk 0:00:16]}  Nd7 {[%clk 0:00:59]} 28. a5 {[%clk 0:00:16]}  Qe5 {[%clk 0:00:58]} 29. Qf2 {[%clk 0:00:16]}  Rg7 {[%clk 0:00:52]} 30. Qd2 {[%clk 0:00:16]}  Nc5 {[%clk 0:00:48]} 31. Bd3 {[%clk 0:00:16]}  Rh7 {[%clk 0:00:46]} 32. Qf2 {[%clk 0:00:15]}  Nd7 {[%clk 0:00:43]} 33. h4 {[%clk 0:00:13]}  Qxa5 {[%clk 0:00:42]} 34. e5 {[%clk 0:00:13]}  Rh5 {[%clk 0:00:38]} 35. exd6+ {[%clk 0:00:13]}  Kb8 {[%clk 0:00:35]} 36. Qxf7 {[%clk 0:00:13]}  Rxh4 {[%clk 0:00:32]} 37. Qxe6 {[%clk 0:00:14]}  Qe5 {[%clk 0:00:29]} 38. Qg8+ {[%clk 0:00:13]}  Ka7 {[%clk 0:00:29]} 39. Qg1+ {[%clk 0:00:12]}  Qc5 {[%clk 0:00:29]} 40. Qxc5+ {[%clk 0:00:10]}  Nxc5 {[%clk 0:00:29]} 41. Bf5 {[%clk 0:00:11]}  Rh8 {[%clk 0:00:23]} 42. b4 {[%clk 0:00:11]}  Nd7 {[%clk 0:00:22]} 43. Nd5 {[%clk 0:00:11]}  Rd8 {[%clk 0:00:18]} 44. Ne7 {[%clk 0:00:11]}  Nb6 {[%clk 0:00:17]} 45. Nxc6+ {[%clk 0:00:10]}  bxc6 {[%clk 0:00:17]} 46. Be6 {[%clk 0:00:11]}  Kb7 {[%clk 0:00:16]} 47. c4 {[%clk 0:00:11]}  c5 {[%clk 0:00:15]} 48. bxc5 {[%clk 0:00:10]}  Na4 {[%clk 0:00:15]} 49. Bd5+ {[%clk 0:00:10]}  Ka7 {[%clk 0:00:14]} 50. Kc2 {[%clk 0:00:09]}  Nxc5 {[%clk 0:00:14]} 51. Bf3 {[%clk 0:00:09]}  a5 {[%clk 0:00:10]} 52. Kc3 {[%clk 0:00:08]}  Kb6 {[%clk 0:00:09]} 53. Rb1+ {[%clk 0:00:08]}  Ka7 {[%clk 0:00:09]} 54. Rb5 {[%clk 0:00:08]}  Na4+ {[%clk 0:00:03]} 55. Kb3 {[%clk 0:00:07]}  Nb6 {[%clk 0:00:03]} 56. c5 {[%clk 0:00:06]}  Nd7 {[%clk 0:00:04]} 57. Rxa5+ {[%clk 0:00:06]} 1-0


[Site "https://www.chess.com"]